[Event "Kvibergspelen 2022"]
[Site "Kviberg Park Hotel & Conference, Krutvagen 2, Gothenburg, Sweden"]
[Date "2022.10.02"]
[Round "8.14"]
[White "Hauksdottir, Hrund"]
[Black "Nygren, David"]
[Result "0-1"]
[TimeControl "15 minutes + 5 seconds per move from move one (Round 1 - 4) / 90 minutes + 30 seconds per move from move one (Round 5 - 8)"]
[WhiteFideId "2302608"]
[BlackFideId "1704761"]
[WhiteElo "1767"]
[BlackElo "2165"]

1. e4 {[%clk 01:28:51]} {[%emt 00:02:08]} c5 {[%clk 01:30:47]} {[%emt
00:00:13]} 2. Nf3 {[%clk 01:28:59]} {[%emt 00:00:22]} Nc6 {[%clk 01:31:04]}
{[%emt 00:00:13]} 3. d4 {[%clk 01:29:16]} {[%emt 00:00:13]} cxd4 {[%clk
01:31:22]} {[%emt 00:00:13]} 4. Nxd4 {[%clk 01:29:38]} {[%emt 00:00:07]} e5
{[%clk 01:31:47]} {[%emt 00:00:05]} 5. Nb5 {[%clk 01:28:35]} {[%emt 00:01:33]}
d6 {[%clk 01:32:07]} {[%emt 00:00:10]} 6. N1c3 {[%clk 01:28:43]} {[%emt
00:00:22]} a6 {[%clk 01:32:21]} {[%emt 00:00:17]} 7. Na3 {[%clk 01:28:58]}
{[%emt 00:00:15]} b5 {[%clk 01:32:42]} {[%emt 00:00:09]} 8. Nd5 {[%clk
01:27:24]} {[%emt 00:02:05]} Nge7 {[%clk 01:32:51]} {[%emt 00:00:19]} 9. Bg5
{[%clk 01:19:39]} {[%emt 00:08:14]} h6 {[%clk 01:29:41]} {[%emt 00:03:41]} 10.
Bxe7 {[%clk 01:19:48]} {[%emt 00:00:21]} Bxe7 {[%clk 01:29:23]} {[%emt
00:00:47]} 11. c3 {[%clk 01:19:41]} {[%emt 00:00:38]} Be6 {[%clk 01:27:39]}
{[%emt 00:02:15]} 12. Nc2 {[%clk 01:12:13]} {[%emt 00:07:56]} Bxd5 {[%clk
01:24:32]} {[%emt 00:03:38]} 13. Qxd5 {[%clk 01:10:23]} {[%emt 00:02:20]} Qb6
{[%clk 01:21:00]} {[%emt 00:04:01]} 14. a4 {[%clk 01:02:32]} {[%emt 00:08:21]}
Rb8 {[%clk 01:15:46]} {[%emt 00:05:45]} 15. axb5 {[%clk 01:01:05]} {[%emt
00:01:57]} axb5 {[%clk 01:15:31]} {[%emt 00:00:45]} 16. Be2 {[%clk 01:00:06]}
{[%emt 00:01:29]} O-O {[%clk 01:13:33]} {[%emt 00:02:28]} 17. O-O {[%clk
01:00:03]} {[%emt 00:00:32]} Nd8 {[%clk 01:00:03]} {[%emt 00:13:59]} 18. Nb4
{[%clk 00:54:12]} {[%emt 00:06:23]} Kh8 {[%clk 00:53:12]} {[%emt 00:07:21]} 19.
Ra6 {[%clk 00:51:40]} {[%emt 00:03:02]} Qb7 {[%clk 00:48:18]} {[%emt 00:05:24]}
20. Rfa1 {[%clk 00:49:06]} {[%emt 00:03:04]} Ne6 {[%clk 00:45:21]} {[%emt
00:03:27]} 21. Ra7 {[%clk 00:43:39]} {[%emt 00:05:57]} Qxd5 {[%clk 00:45:06]}
{[%emt 00:00:44]} 22. Nxd5 {[%clk 00:41:43]} {[%emt 00:02:27]} Bg5 {[%clk
00:43:27]} {[%emt 00:02:09]} 23. R1a5 {[%clk 00:32:46]} {[%emt 00:09:27]} Nc5
{[%clk 00:37:20]} {[%emt 00:06:38]} 24. f3 {[%clk 00:31:02]} {[%emt 00:02:14]}
Na4 {[%clk 00:32:54]} {[%emt 00:04:56]} 25. Rd7 {[%clk 00:25:03]} {[%emt
00:06:28]} Nxb2 {[%clk 00:29:18]} {[%emt 00:04:06]} 26. Rxb5 {[%clk 00:23:15]}
{[%emt 00:02:17]} Rxb5 {[%clk 00:23:05]} {[%emt 00:06:43]} 27. Bxb5 {[%clk
00:23:36]} {[%emt 00:00:10]} Ra8 {[%clk 00:20:32]} {[%emt 00:03:03]} 28. Rxd6
{[%clk 00:20:25]} {[%emt 00:03:41]} Ra1+ {[%clk 00:20:16]} {[%emt 00:00:45]} 29.
Kf2 {[%clk 00:18:26]} {[%emt 00:02:29]} Rh1 {[%clk 00:17:37]} {[%emt 00:03:09]}
30. Ne3 {[%clk 00:09:21]} {[%emt 00:09:34]} Rc1 {[%clk 00:09:59]} {[%emt
00:08:08]} 31. c4 {[%clk 00:04:15]} {[%emt 00:05:38]} Rc3 {[%clk 00:08:51]}
{[%emt 00:01:38]} 32. Nd1 {[%clk 00:02:20]} {[%emt 00:02:24]} Rc2+ {[%clk
00:04:36]} {[%emt 00:04:44]} 33. Kf1 {[%clk 00:02:36]} {[%emt 00:00:15]} Nxc4
{[%clk 00:02:37]} {[%emt 00:02:29]} 34. Bxc4 {[%clk 00:02:35]} {[%emt
00:00:31]} Rxc4 {[%clk 00:03:03]} {[%emt 00:00:04]} 35. Rd3 {[%clk 00:02:10]}
{[%emt 00:00:54]} Rc1 {[%clk 00:03:09]} {[%emt 00:00:25]} 36. Ke2 {[%clk
00:01:47]} {[%emt 00:00:53]} Rc2+ {[%clk 00:03:33]} {[%emt 00:00:05]} 37. Kf1
{[%clk 00:02:06]} {[%emt 00:00:10]} Bf4 {[%clk 00:03:02]} {[%emt 00:01:02]} 38.
h3 {[%clk 00:02:00]} {[%emt 00:00:37]} Bg3 {[%clk 00:03:05]} {[%emt 00:00:27]}
39. Ne3 {[%clk 00:01:05]} {[%emt 00:01:25]} Rf2+ {[%clk 00:03:23]} {[%emt
00:00:11]} 40. Kg1 {[%clk 00:01:25]} {[%emt 00:00:11]} Re2 {[%clk 00:03:39]}
{[%emt 00:00:14]} 41. Nf1 {[%clk 00:00:40]} {[%emt 00:01:15]} Re1 {[%clk
00:03:30]} {[%emt 00:00:38]} 42. Rd7 {[%clk 00:00:56]} {[%emt 00:00:15]} Kg8
{[%clk 00:03:09]} {[%emt 00:00:51]} 43. Rd8+ {[%clk 00:01:19]} {[%emt
00:00:07]} Kh7 {[%clk 00:03:33]} {[%emt 00:00:05]} 44. Rd7 {[%clk 00:01:45]}
{[%emt 00:00:05]} Kg6 {[%clk 00:03:21]} {[%emt 00:00:42]} 45. Rd6+ {[%clk
00:02:01]} {[%emt 00:00:13]} f6 {[%clk 00:02:37]} {[%emt 00:01:16]} 46. Rd7
{[%clk 00:02:25]} {[%emt 00:00:06]} h5 {[%clk 00:02:41]} {[%emt 00:00:26]} 47.
Rb7 {[%clk 00:02:11]} {[%emt 00:00:44]} Kh6 {[%clk 00:03:01]} {[%emt 00:00:09]}
48. Rf7 {[%clk 00:02:27]} {[%emt 00:00:14]} h4 {[%clk 00:02:25]} {[%emt
00:01:06]} 49. Rb7 {[%clk 00:01:34]} {[%emt 00:01:24]} Ra1 {[%clk 00:02:41]}
{[%emt 00:00:13]} 50. Rd7 {[%clk 00:00:52]} {[%emt 00:01:14]} Bf4 {[%clk
00:02:16]} {[%emt 00:00:55]} 51. Rd3 {[%clk 00:01:01]} {[%emt 00:00:21]} g6
{[%clk 00:02:00]} {[%emt 00:00:46]} 52. Kf2 {[%clk 00:00:50]} {[%emt 00:00:41]}
Ra2+ {[%clk 00:02:17]} {[%emt 00:00:13]} 53. Kg1 {[%clk 00:01:10]} {[%emt
00:00:09]} Re2 {[%clk 00:02:03]} {[%emt 00:00:44]} 54. Rb3 {[%clk 00:01:13]}
{[%emt 00:00:28]} Bg3 {[%clk 00:01:22]} {[%emt 00:01:09]} 55. Rb1 {[%clk
00:01:09]} {[%emt 00:00:35]} Kg5 {[%clk 00:00:56]} {[%emt 00:00:56]} 56. Rd1
{[%clk 00:00:57]} {[%emt 00:00:42]} f5 {[%clk 00:01:07]} {[%emt 00:00:20]} 57.
exf5 {[%clk 00:01:07]} {[%emt 00:00:22]} gxf5 {[%clk 00:01:29]} {[%emt
00:00:06]} 58. Rd3 {[%clk 00:00:38]} {[%emt 00:00:59]} Kf4 {[%clk 00:01:23]}
{[%emt 00:00:35]} 59. Rb3 {[%clk 00:00:59]} {[%emt 00:00:10]} Bf2+ {[%clk
00:01:20]} {[%emt 00:00:33]} 60. Kh2 {[%clk 00:01:06]} {[%emt 00:00:23]} Re1
{[%clk 00:01:29]} {[%emt 00:00:21]} 61. Rb4+ {[%clk 00:00:53]} {[%emt
00:00:42]} e4 {[%clk 00:01:10]} {[%emt 00:00:49]} 62. g3+ {[%clk 00:00:37]}
{[%emt 00:00:46]} Bxg3+ {[%clk 00:00:47]} {[%emt 00:00:54]} 63. Nxg3 {[%clk
00:00:51]} {[%emt 00:00:16]} hxg3+ {[%clk 00:01:13]} {[%emt 00:00:04]} 64. Kg2
{[%clk 00:01:12]} {[%emt 00:00:08]} Re2+ {[%clk 00:01:38]} {[%emt 00:00:05]} 65.
Kf1 {[%clk 00:01:15]} {[%emt 00:00:27]} Rf2+ {[%clk 00:01:57]} {[%emt
00:00:11]} 0-1

[Event "Kvibergspelen 2022"]
[Site "Kviberg Park Hotel & Conference, Krutvagen 2, Gothenburg, Sweden"]
[Date "2022.10.02"]
[Round "8.15"]
[White "Cibo, Faris"]
[Black "Johannsson, Birkir Isak"]
[Result "1/2-1/2"]
[TimeControl "15 minutes + 5 seconds per move from move one (Round 1 - 4) / 90 minutes + 30 seconds per move from move one (Round 5 - 8)"]
[WhiteFideId "1764268"]
[BlackFideId "2314673"]
[WhiteElo "1750"]
[BlackElo "2165"]

1. d4 {[%clk 01:30:58]} d5 {[%clk 01:30:49]} {[%emt 00:00:11]} 2. c4 {[%clk
01:31:24]} {[%emt 00:00:05]} e6 {[%clk 01:31:12]} {[%emt 00:00:07]} 3. Nf3
{[%clk 01:31:48]} {[%emt 00:00:05]} Nf6 {[%clk 01:31:34]} {[%emt 00:00:08]} 4.
g3 {[%clk 01:32:11]} {[%emt 00:00:07]} dxc4 {[%clk 01:31:39]} {[%emt 00:00:26]}
5. Bg2 {[%clk 01:32:35]} {[%emt 00:00:05]} Bb4+ {[%clk 01:32:02]} {[%emt
00:00:08]} 6. Bd2 {[%clk 01:32:58]} {[%emt 00:00:06]} a5 {[%clk 01:32:18]}
{[%emt 00:00:14]} 7. Qc2 {[%clk 01:32:07]} {[%emt 00:01:21]} c5 {[%clk
01:31:54]} {[%emt 00:00:54]} 8. dxc5 {[%clk 01:30:55]} {[%emt 00:01:42]} Bxc5
{[%clk 01:31:57]} {[%emt 00:00:27]} 9. Qxc4 {[%clk 01:31:14]} {[%emt 00:00:10]}
b6 {[%clk 01:32:08]} {[%emt 00:00:20]} 10. Ne5 {[%clk 01:26:07]} {[%emt
00:05:39]} Ra7 {[%clk 01:28:12]} {[%emt 00:04:24]} 11. Qa4+ {[%clk 01:25:35]}
{[%emt 00:01:02]} Nfd7 {[%clk 01:18:40]} {[%emt 00:10:02]} 12. Nd3 {[%clk
01:25:10]} {[%emt 00:00:55]} O-O {[%clk 01:16:46]} {[%emt 00:02:23]} 13. Nxc5
{[%clk 01:23:16]} {[%emt 00:02:24]} Nxc5 {[%clk 01:16:59]} {[%emt 00:00:17]} 14.
Qc2 {[%clk 01:23:39]} {[%emt 00:00:06]} Bb7 {[%clk 01:16:38]} {[%emt 00:00:53]}
15. O-O {[%clk 01:23:19]} {[%emt 00:00:49]} Bxg2 {[%clk 01:16:08]} {[%emt
00:01:01]} 16. Kxg2 {[%clk 01:23:40]} {[%emt 00:00:08]} Nc6 {[%clk 01:15:35]}
{[%emt 00:01:04]} 17. Be3 {[%clk 01:22:14]} {[%emt 00:01:55]} Nb4 {[%clk
01:07:56]} {[%emt 00:08:08]} 18. Qc4 {[%clk 01:15:42]} {[%emt 00:07:02]} Qa8+
{[%clk 01:03:11]} {[%emt 00:05:15]} 19. Kg1 {[%clk 01:13:49]} {[%emt 00:02:23]}
Rc8 {[%clk 01:03:36]} {[%emt 00:00:06]} 20. Rc1 {[%clk 01:14:04]} {[%emt
00:00:14]} Nd5 {[%clk 00:59:21]} {[%emt 00:04:45]} 21. Bd2 {[%clk 01:13:06]}
{[%emt 00:01:29]} Rac7 {[%clk 00:58:36]} {[%emt 00:01:14]} 22. Na3 {[%clk
01:12:14]} {[%emt 00:01:22]} h6 {[%clk 00:50:54]} {[%emt 00:08:12]} 23. Nb5
{[%clk 01:12:28]} {[%emt 00:00:16]} Rd7 {[%clk 00:51:24]} {[%emt 00:00:01]} 24.
b4 {[%clk 01:10:15]} {[%emt 00:02:42]} axb4 {[%clk 00:49:45]} {[%emt 00:02:09]}
25. Bxb4 {[%clk 01:08:19]} {[%emt 00:02:26]} Rdd8 {[%clk 00:48:54]} {[%emt
00:01:21]} 26. Bxc5 {[%clk 01:05:05]} {[%emt 00:03:43]} Rxc5 {[%clk 00:49:18]}
{[%emt 00:00:07]} 27. Qb3 {[%clk 01:05:23]} {[%emt 00:00:11]} Rdc8 {[%clk
00:49:13]} {[%emt 00:00:36]} 28. Rxc5 {[%clk 01:04:40]} {[%emt 00:01:13]} Rxc5
{[%clk 00:49:37]} {[%emt 00:00:07]} 29. Rd1 {[%clk 01:03:44]} {[%emt 00:01:25]}
Qc6 {[%clk 00:48:28]} {[%emt 00:01:41]} 30. Nd4 {[%clk 01:02:05]} {[%emt
00:02:08]} Qc7 {[%clk 00:48:30]} {[%emt 00:00:27]} 31. e3 {[%clk 01:00:42]}
{[%emt 00:01:55]} h5 {[%clk 00:48:08]} {[%emt 00:00:52]} 32. Qa4 {[%clk
00:59:51]} {[%emt 00:01:21]} Qc8 {[%clk 00:47:54]} {[%emt 00:00:45]} 33. Rf1
{[%clk 00:56:59]} {[%emt 00:03:20]} Ra5 {[%clk 00:46:02]} {[%emt 00:02:23]} 34.
Qb3 {[%clk 00:57:08]} {[%emt 00:00:21]} h4 {[%clk 00:45:25]} {[%emt 00:01:07]}
35. e4 {[%clk 00:55:17]} {[%emt 00:02:20]} Nf6 {[%clk 00:45:38]} {[%emt
00:00:19]} 36. Qxb6 {[%clk 00:55:21]} {[%emt 00:00:26]} Rxa2 {[%clk 00:44:10]}
{[%emt 00:01:58]} 37. Nc6 {[%clk 00:55:42]} {[%emt 00:00:08]} Qd7 {[%clk
00:42:20]} {[%emt 00:02:20]} 1/2-1/2

[Event "Kvibergspelen 2022"]
[Site "Kviberg Park Hotel & Conference, Krutvagen 2, Gothenburg, Sweden"]
[Date "2022.10.02"]
[Round "8.16"]
[White "Strom-Engdahl, Alexander"]
[Black "Fridgeirsson, Dagur Andri"]
[Result "1-0"]
[TimeControl "15 minutes + 5 seconds per move from move one (Round 1 - 4) / 90 minutes + 30 seconds per move from move one (Round 5 - 8)"]
[WhiteFideId "1741586"]
[BlackFideId "2303124"]
[WhiteElo "2114"]
[BlackElo "1943"]

1. d4 {[%clk 01:30:57]} {[%emt 00:00:02]} d5 {[%clk 01:30:41]} {[%emt
00:00:20]} 2. Bf4 {[%clk 01:31:18]} {[%emt 00:00:08]} Nf6 {[%clk 01:30:51]}
{[%emt 00:00:20]} 3. e3 {[%clk 01:31:38]} {[%emt 00:00:10]} Bf5 {[%clk
01:29:24]} {[%emt 00:01:56]} 4. Nd2 {[%clk 01:31:39]} {[%emt 00:00:30]} e6
{[%clk 01:29:34]} {[%emt 00:00:20]} 5. Ngf3 {[%clk 01:31:45]} {[%emt 00:00:23]}
Bd6 {[%clk 01:26:41]} {[%emt 00:03:24]} 6. Bg3 {[%clk 01:31:24]} {[%emt
00:00:52]} Bxg3 {[%clk 01:26:24]} {[%emt 00:00:47]} 7. hxg3 {[%clk 01:31:42]}
{[%emt 00:00:11]} O-O {[%clk 01:25:53]} {[%emt 00:01:02]} 8. Bd3 {[%clk
01:29:06]} {[%emt 00:03:05]} Bxd3 {[%clk 01:17:22]} {[%emt 00:09:01]} 9. cxd3
{[%clk 01:29:21]} {[%emt 00:00:15]} Nc6 {[%clk 01:16:41]} {[%emt 00:01:12]} 10.
O-O {[%clk 01:28:10]} {[%emt 00:01:41]} a5 {[%clk 01:14:12]} {[%emt 00:02:59]}
11. a3 {[%clk 01:23:22]} {[%emt 00:05:17]} Re8 {[%clk 01:06:42]} {[%emt
00:08:00]} 12. Qc2 {[%clk 01:18:45]} {[%emt 00:05:07]} Ne7 {[%clk 01:02:57]}
{[%emt 00:04:16]} 13. b4 {[%clk 01:16:22]} {[%emt 00:02:53]} axb4 {[%clk
01:00:39]} {[%emt 00:02:48]} 14. axb4 {[%clk 01:16:49]} {[%emt 00:00:04]} Qd6
{[%clk 00:55:26]} {[%emt 00:05:42]} 15. Qc3 {[%clk 01:12:08]} {[%emt 00:05:11]}
Qc6 {[%clk 00:52:49]} {[%emt 00:03:08]} 16. Qb3 {[%clk 01:08:08]} {[%emt
00:04:29]} Qb5 {[%clk 00:50:17]} {[%emt 00:03:02]} 17. Ne5 {[%clk 01:06:43]}
{[%emt 00:01:55]} Ng6 {[%clk 00:48:58]} {[%emt 00:01:49]} 18. Ndf3 {[%clk
01:05:16]} {[%emt 00:01:57]} Nxe5 {[%clk 00:43:19]} {[%emt 00:06:10]} 19. Nxe5
{[%clk 01:04:26]} {[%emt 00:01:19]} Nd7 {[%clk 00:41:25]} {[%emt 00:02:24]} 20.
Nxd7 {[%clk 01:01:38]} {[%emt 00:03:18]} Qxd7 {[%clk 00:39:40]} {[%emt
00:02:16]} 21. Ra3 {[%clk 01:01:18]} {[%emt 00:00:50]} Qb5 {[%clk 00:38:00]}
{[%emt 00:02:10]} 22. Rfa1 {[%clk 01:01:14]} {[%emt 00:00:34]} Rxa3 {[%clk
00:36:50]} {[%emt 00:01:40]} 23. Rxa3 {[%clk 01:00:29]} {[%emt 00:01:15]} h6
{[%clk 00:36:53]} {[%emt 00:00:27]} 24. Qc3 {[%clk 00:56:04]} {[%emt 00:04:55]}
b6 {[%clk 00:26:22]} {[%emt 00:11:02]} 25. g4 {[%clk 00:49:18]} {[%emt
00:07:14]} Rc8 {[%clk 00:23:34]} {[%emt 00:03:18]} 26. Qb3 {[%clk 00:47:00]}
{[%emt 00:02:48]} Qc6 {[%clk 00:20:48]} {[%emt 00:03:17]} 27. Qb2 {[%clk
00:42:41]} {[%emt 00:04:49]} Ra8 {[%clk 00:19:12]} {[%emt 00:02:07]} 28. b5
{[%clk 00:34:22]} {[%emt 00:08:48]} Qe8 {[%clk 00:18:07]} {[%emt 00:01:35]} 29.
Rc3 {[%clk 00:32:30]} {[%emt 00:02:22]} Ra5 {[%clk 00:17:58]} {[%emt 00:00:40]}
30. Rxc7 {[%clk 00:30:42]} {[%emt 00:02:18]} Qxb5 {[%clk 00:17:46]} {[%emt
00:00:42]} 31. Qc2 {[%clk 00:30:29]} {[%emt 00:00:43]} Ra1+ {[%clk 00:17:33]}
{[%emt 00:00:43]} 32. Kh2 {[%clk 00:30:46]} {[%emt 00:00:13]} Rb1 {[%clk
00:16:44]} {[%emt 00:01:19]} 33. Rc8+ {[%clk 00:29:25]} {[%emt 00:01:51]} Kh7
{[%clk 00:17:08]} {[%emt 00:00:06]} 34. Qc7 {[%clk 00:29:43]} {[%emt 00:00:11]}
f6 {[%clk 00:09:35]} {[%emt 00:08:03]} 35. Qf7 {[%clk 00:28:55]} {[%emt
00:01:17]} Qxd3 {[%clk 00:03:36]} {[%emt 00:06:30]} 36. Qg8+ {[%clk 00:28:49]}
{[%emt 00:00:36]} Kg6 {[%clk 00:03:52]} {[%emt 00:00:14]} 37. Rc7 {[%clk
00:29:03]} {[%emt 00:00:17]} Kg5 {[%clk 00:01:45]} {[%emt 00:02:36]} 38. Rxg7+
{[%clk 00:29:16]} {[%emt 00:00:16]} Kh4 {[%clk 00:02:07]} {[%emt 00:00:08]} 39.
g3# {[%clk 00:29:43]} {[%emt 00:00:03]} 1-0

[Event "Kvibergspelen 2022"]
[Site "Kviberg Park Hotel & Conference, Krutvagen 2, Gothenburg, Sweden"]
[Date "2022.10.02"]
[Round "8.17"]
[White "Borvander, Tom"]
[Black "Hagevi, Vidar"]
[Result "0-1"]
[TimeControl "15 minutes + 5 seconds per move from move one (Round 1 - 4) / 90 minutes + 30 seconds per move from move one (Round 5 - 8)"]
[WhiteFideId "1707388"]
[BlackFideId "1767526"]
[WhiteElo "2098"]
[BlackElo "1922"]

1. d4 {[%clk 01:30:52]} {[%emt 00:00:08]} Nf6 {[%clk 01:30:53]} {[%emt
00:00:07]} 2. c4 {[%clk 01:31:15]} {[%emt 00:00:07]} e6 {[%clk 01:31:06]}
{[%emt 00:00:17]} 3. Nf3 {[%clk 01:31:37]} {[%emt 00:00:09]} d5 {[%clk
01:31:26]} {[%emt 00:00:10]} 4. g3 {[%clk 01:31:50]} {[%emt 00:00:17]} Be7
{[%clk 01:31:26]} {[%emt 00:00:29]} 5. Bg2 {[%clk 01:32:10]} {[%emt 00:00:10]}
O-O {[%clk 01:31:44]} {[%emt 00:00:12]} 6. O-O {[%clk 01:32:30]} {[%emt
00:00:10]} dxc4 {[%clk 01:32:05]} {[%emt 00:00:09]} 7. Qc2 {[%clk 01:32:40]}
{[%emt 00:00:20]} b5 {[%clk 01:29:22]} {[%emt 00:03:13]} 8. a4 {[%clk
01:32:04]} {[%emt 00:01:06]} Bb7 {[%clk 01:29:46]} {[%emt 00:00:06]} 9. axb5
{[%clk 01:31:00]} {[%emt 00:01:35]} a6 {[%clk 01:29:57]} {[%emt 00:00:19]} 10.
Nc3 {[%clk 01:30:30]} {[%emt 00:01:00]} c5 {[%clk 01:27:00]} {[%emt 00:03:27]}
11. bxc6 {[%emt 00:05:27]} Nxc6 {[%clk 01:26:23]} {[%emt 00:00:56]} 12. Rd1
{[%clk 01:25:34]} {[%emt 00:00:40]} h6 {[%clk 01:16:54]} {[%emt 00:09:59]} 13.
Qb1 {[%clk 01:16:16]} {[%emt 00:09:47]} Nb4 {[%clk 01:14:35]} {[%emt 00:02:52]}
14. Ne5 {[%clk 01:15:49]} {[%emt 00:00:55]} Bxg2 {[%clk 01:10:35]} {[%emt
00:04:29]} 15. Kxg2 {[%clk 01:16:14]} {[%emt 00:00:05]} Qb6 {[%clk 01:06:22]}
{[%emt 00:04:44]} 16. e4 {[%clk 01:15:04]} {[%emt 00:01:40]} Rac8 {[%clk
01:02:40]} {[%emt 00:04:12]} 17. Be3 {[%clk 01:14:26]} {[%emt 00:01:08]} Qb7
{[%clk 01:01:49]} {[%emt 00:01:20]} 18. Rd2 {[%clk 01:06:16]} {[%emt 00:08:40]}
Rfd8 {[%clk 00:58:38]} {[%emt 00:03:42]} 19. h3 {[%clk 01:01:32]} {[%emt
00:05:15]} Nd3 {[%clk 00:51:37]} {[%emt 00:07:28]} 20. f3 {[%clk 00:54:45]}
{[%emt 00:07:18]} Nxe5 {[%clk 00:51:07]} {[%emt 00:01:00]} 21. dxe5 {[%clk
00:55:08]} {[%emt 00:00:07]} Rxd2+ {[%clk 00:51:06]} {[%emt 00:00:30]} 22. Bxd2
{[%clk 00:55:31]} {[%emt 00:00:08]} Nd7 {[%clk 00:50:32]} {[%emt 00:01:04]} 23.
Qa2 {[%clk 00:54:57]} {[%emt 00:01:03]} Rc6 {[%clk 00:49:30]} {[%emt 00:01:33]}
24. f4 {[%clk 00:55:06]} {[%emt 00:00:22]} Rb6 {[%clk 00:46:53]} {[%emt
00:03:07]} 25. Bc1 {[%clk 00:52:48]} {[%emt 00:02:48]} Nc5 {[%clk 00:45:57]}
{[%emt 00:01:25]} 26. Qxc4 {[%clk 00:51:16]} {[%emt 00:02:03]} Rxb2+ {[%clk
00:43:27]} {[%emt 00:03:00]} 27. Kh1 {[%clk 00:49:18]} {[%emt 00:02:28]} Rb4
{[%clk 00:42:38]} {[%emt 00:01:18]} 28. Qe2 {[%clk 00:48:58]} {[%emt 00:00:50]}
Nxe4 {[%clk 00:38:25]} {[%emt 00:04:43]} 29. Nxe4 {[%clk 00:49:21]} {[%emt
00:00:08]} Rxe4 {[%clk 00:38:05]} {[%emt 00:00:50]} 30. Qg2 {[%clk 00:49:35]}
{[%emt 00:00:15]} Re1+ {[%clk 00:37:12]} {[%emt 00:01:23]} 31. Kh2 {[%clk
00:49:59]} {[%emt 00:00:07]} Qb5 {[%clk 00:35:14]} {[%emt 00:02:28]} 32. Ra2
{[%clk 00:50:04]} {[%emt 00:00:26]} Rxc1 {[%clk 00:34:19]} 0-1

[Event "Kvibergspelen 2022"]
[Site "Kviberg Park Hotel & Conference, Krutvagen 2, Gothenburg, Sweden"]
[Date "2022.10.02"]
[Round "8.18"]
[White "Dingertz, Erik"]
[Black "Nilsson, Oliver"]
[Result "1-0"]
[TimeControl "15 minutes + 5 seconds per move from move one (Round 1 - 4) / 90 minutes + 30 seconds per move from move one (Round 5 - 8)"]
[WhiteFideId "1741578"]
[BlackFideId "1730177"]
[WhiteElo "2001"]
[BlackElo "1909"]

1. c4 {[%clk 01:30:57]} {[%emt 00:00:01]} c5 {[%clk 01:30:57]} {[%emt
00:00:04]} 2. g3 {[%clk 01:31:24]} {[%emt 00:00:03]} g6 {[%clk 01:31:24]}
{[%emt 00:00:03]} 3. Bg2 {[%clk 01:31:52]} {[%emt 00:00:02]} Bg7 {[%clk
01:31:44]} {[%emt 00:00:11]} 4. Nc3 {[%clk 01:32:19]} {[%emt 00:00:02]} Nc6
{[%clk 01:32:07]} {[%emt 00:00:07]} 5. a3 {[%clk 01:32:47]} {[%emt 00:00:02]}
a5 {[%clk 01:32:33]} {[%emt 00:00:03]} 6. e3 {[%clk 01:33:12]} {[%emt
00:00:05]} e5 {[%clk 01:32:52]} {[%emt 00:00:12]} 7. Nge2 {[%clk 01:33:29]}
{[%emt 00:00:12]} d6 {[%clk 01:33:00]} {[%emt 00:00:23]} 8. b3 {[%clk
01:33:01]} {[%emt 00:00:57]} Nge7 {[%clk 01:33:22]} {[%emt 00:00:08]} 9. Bb2
{[%clk 01:33:23]} {[%emt 00:00:08]} O-O {[%clk 01:33:34]} {[%emt 00:00:19]} 10.
Nb5 {[%clk 01:31:59]} {[%emt 00:01:53]} d5 {[%clk 01:30:25]} {[%emt 00:03:38]}
11. cxd5 {[%clk 01:29:25]} {[%emt 00:03:04]} Nxd5 {[%clk 01:29:43]} {[%emt
00:01:13]} 12. O-O {[%clk 01:29:32]} {[%emt 00:00:22]} Be6 {[%clk 01:13:18]}
{[%emt 00:16:55]} 13. Rc1 {[%clk 01:10:19]} {[%emt 00:19:43]} Qe7 {[%clk
00:59:35]} {[%emt 00:14:13]} 14. Qc2 {[%clk 01:06:41]} {[%emt 00:04:08]} b6
{[%clk 00:48:29]} {[%emt 00:11:35]} 15. d4 {[%clk 00:54:06]} {[%emt 00:13:05]}
exd4 {[%clk 00:25:32]} {[%emt 00:23:27]} 16. exd4 {[%clk 00:51:38]} {[%emt
00:02:57]} Rac8 {[%clk 00:22:42]} {[%emt 00:03:20]} 17. dxc5 {[%clk 00:48:33]}
{[%emt 00:03:34]} Bf5 {[%clk 00:17:29]} {[%emt 00:05:44]} 18. Qd2 {[%clk
00:47:54]} {[%emt 00:01:09]} Bxb2 {[%clk 00:16:56]} {[%emt 00:01:04]} 19. Qxb2
{[%clk 00:47:51]} {[%emt 00:00:33]} Bd3 {[%clk 00:16:22]} {[%emt 00:01:03]} 20.
Rfe1 {[%clk 00:47:11]} {[%emt 00:01:09]} Bxb5 {[%clk 00:15:46]} {[%emt
00:01:07]} 21. Bxd5 {[%clk 00:43:25]} {[%emt 00:04:15]} Rfe8 {[%clk 00:10:41]}
{[%emt 00:05:37]} 22. cxb6 {[%clk 00:42:20]} {[%emt 00:01:34]} Qg5 {[%clk
00:09:34]} {[%emt 00:01:37]} 23. Nf4 {[%clk 00:41:35]} {[%emt 00:01:15]} Red8
{[%clk 00:05:02]} {[%emt 00:05:02]} 24. b7 {[%clk 00:39:07]} {[%emt 00:02:58]}
Rc7 {[%clk 00:05:21]} {[%emt 00:00:12]} 25. a4 {[%clk 00:39:09]} {[%emt
00:00:28]} Nb4 {[%clk 00:02:39]} {[%emt 00:03:12]} 26. Rxc7 {[%clk 00:38:51]}
{[%emt 00:00:48]} Nxd5 {[%clk 00:02:54]} {[%emt 00:00:15]} 27. Nxd5 {[%clk
00:39:04]} {[%emt 00:00:17]} 1-0